[Event "MČR v bleskovém šachu družstev 2019"]
[Site "Teplice, Czech Republic"]
[Date "2019.09.14"]
[Round "10.1"]
[White "Kociscak, Jiri"]
[Black "Dvorak, Jan"]
[Result "1-0"]
[TimeControl "3 mim. + 2 s"]
[WhiteTitle "IM"]
[WhiteFideId "322121"]
[BlackFideId "314870"]
[WhiteElo "2417"]
[BlackElo "2229"]

1. d4 {[%clk 00:03:03]} {[%emt 00:03:39]} e6 {[%clk 00:03:03]} {[%emt
00:00:01]} 2. c4 {[%clk 00:03:03]} {[%emt 00:00:01]} d5 {[%clk 00:03:05]}
{[%emt 00:00:01]} 3. Nf3 {[%clk 00:03:04]} {[%emt 00:00:02]} Nf6 {[%clk
00:03:04]} {[%emt 00:00:02]} 4. g3 {[%clk 00:03:05]} {[%emt 00:00:01]} c5
{[%clk 00:03:01]} {[%emt 00:00:05]} 5. cxd5 {[%clk 00:03:05]} {[%emt 00:00:02]}
exd5 {[%clk 00:03:02]} {[%emt 00:00:01]} 6. Bg2 {[%clk 00:03:06]} Nc6 {[%clk
00:03:03]} {[%emt 00:00:01]} 7. O-O {[%clk 00:03:05]} {[%emt 00:00:03]} Be7
{[%clk 00:03:03]} {[%emt 00:00:02]} 8. Nc3 {[%clk 00:03:05]} {[%emt 00:00:02]}
O-O {[%clk 00:03:03]} {[%emt 00:00:02]} 9. dxc5 {[%clk 00:03:03]} {[%emt
00:00:04]} Bxc5 {[%clk 00:02:52]} {[%emt 00:00:13]} 10. Na4 {[%clk 00:03:04]}
{[%emt 00:00:01]} Be7 {[%clk 00:02:50]} {[%emt 00:00:03]} 11. Be3 {[%clk
00:03:05]} {[%emt 00:00:01]} Re8 {[%clk 00:02:41]} {[%emt 00:00:12]} 12. Rc1
{[%clk 00:03:05]} {[%emt 00:00:01]} Bg4 {[%clk 00:02:34]} {[%emt 00:00:09]} 13.
Nc5 {[%clk 00:03:03]} {[%emt 00:00:04]} Bxc5 {[%clk 00:02:30]} {[%emt
00:00:06]} 14. Bxc5 {[%clk 00:03:04]} {[%emt 00:00:02]} Qd7 {[%clk 00:02:28]}
{[%emt 00:00:05]} 15. Re1 {[%clk 00:03:02]} {[%emt 00:00:04]} Rad8 {[%clk
00:02:00]} {[%emt 00:00:29]} 16. Nd4 {[%clk 00:02:34]} {[%emt 00:00:30]} Bh3
{[%clk 00:01:46]} {[%emt 00:00:16]} 17. Bh1 {[%clk 00:02:09]} {[%emt 00:00:28]}
Ne4 {[%clk 00:01:41]} {[%emt 00:00:07]} 18. Nxc6 {[%clk 00:02:08]} {[%emt
00:00:03]} bxc6 {[%clk 00:01:41]} {[%emt 00:00:02]} 19. Qa4 {[%clk 00:02:00]}
{[%emt 00:00:10]} Qf5 {[%clk 00:01:23]} {[%emt 00:00:20]} 20. Bxa7 {[%clk
00:01:45]} {[%emt 00:00:17]} Ra8 {[%clk 00:00:49]} {[%emt 00:00:36]} 21. Qxc6
{[%clk 00:01:35]} {[%emt 00:00:12]} Red8 {[%clk 00:00:29]} {[%emt 00:00:22]} 22.
Bd4 {[%clk 00:01:23]} {[%emt 00:00:15]} Rxa2 {[%clk 00:00:23]} {[%emt
00:00:08]} 23. Ra1 {[%clk 00:01:22]} {[%emt 00:00:03]} Rxb2 {[%clk 00:00:20]}
{[%emt 00:00:06]} 24. f3 {[%clk 00:01:07]} {[%emt 00:00:17]} Nxg3 {[%clk
00:00:04]} {[%emt 00:00:18]} 25. hxg3 {[%clk 00:00:55]} {[%emt 00:00:14]} Rc2
{[%clk 00:00:04]} {[%emt 00:00:02]} 26. Qb6 {[%clk 00:00:52]} {[%emt 00:00:04]}
Rc4 {[%clk 00:00:04]} {[%emt 00:00:02]} 27. Qxd8# {[%clk 00:00:52]} {[%emt
00:00:02]} 1-0

[Event "MČR v bleskovém šachu družstev 2019"]
[Site "Teplice, Czech Republic"]
[Date "2019.09.14"]
[Round "10.2"]
[White "Kopta, Pavel"]
[Black "Polak, Tomas"]
[Result "1/2-1/2"]
[TimeControl "3 mim. + 2 s"]
[WhiteTitle "FM"]
[BlackTitle "GM"]
[WhiteFideId "309109"]
[BlackFideId "300560"]
[WhiteElo "2234"]
[BlackElo "2510"]

1. d4 {[%clk 00:03:03]} Nf6 {[%clk 00:03:03]} {[%emt 00:00:02]} 2. c4 {[%clk
00:03:03]} {[%emt 00:00:01]} e6 {[%clk 00:03:03]} {[%emt 00:00:02]} 3. Nc3
{[%clk 00:03:03]} {[%emt 00:00:01]} Bb4 {[%clk 00:03:04]} {[%emt 00:00:02]} 4.
Qc2 {[%clk 00:03:04]} O-O {[%clk 00:03:03]} {[%emt 00:00:03]} 5. Nf3 {[%clk
00:03:02]} {[%emt 00:00:04]} b6 {[%clk 00:03:03]} {[%emt 00:00:02]} 6. Bg5
{[%clk 00:02:59]} {[%emt 00:00:06]} Bb7 {[%clk 00:03:02]} {[%emt 00:00:02]} 7.
e3 {[%clk 00:02:57]} {[%emt 00:00:04]} d6 {[%clk 00:03:02]} {[%emt 00:00:03]} 8.
Bd3 {[%clk 00:02:55]} {[%emt 00:00:04]} h6 {[%clk 00:03:03]} {[%emt 00:00:01]}
9. Bh4 {[%clk 00:02:53]} {[%emt 00:00:04]} Nbd7 {[%clk 00:03:01]} {[%emt
00:00:03]} 10. a3 {[%clk 00:02:48]} {[%emt 00:00:08]} Bxc3+ {[%clk 00:03:01]}
{[%emt 00:00:02]} 11. Qxc3 {[%clk 00:02:49]} {[%emt 00:00:01]} c5 {[%clk
00:02:54]} {[%emt 00:00:09]} 12. O-O {[%clk 00:02:29]} {[%emt 00:00:22]} Rc8
{[%clk 00:02:46]} {[%emt 00:00:10]} 13. Rac1 {[%clk 00:01:56]} {[%emt
00:00:36]} cxd4 {[%clk 00:02:27]} {[%emt 00:00:21]} 14. Nxd4 {[%clk 00:01:50]}
{[%emt 00:00:08]} Ne5 {[%clk 00:02:24]} {[%emt 00:00:05]} 15. Qd2 {[%clk
00:01:37]} {[%emt 00:00:15]} Qe7 {[%clk 00:02:12]} {[%emt 00:00:14]} 16. Rfd1
{[%clk 00:01:32]} {[%emt 00:00:08]} Rfd8 {[%clk 00:02:10]} {[%emt 00:00:04]} 17.
Qe2 {[%clk 00:01:22]} {[%emt 00:00:12]} Ba8 {[%clk 00:02:06]} {[%emt 00:00:06]}
18. Bb1 {[%clk 00:01:21]} {[%emt 00:00:04]} g5 {[%clk 00:01:50]} {[%emt
00:00:18]} 19. Bg3 {[%clk 00:01:21]} {[%emt 00:00:01]} Ne4 {[%clk 00:01:48]}
{[%emt 00:00:04]} 20. Bxe4 {[%clk 00:01:12]} {[%emt 00:00:11]} Bxe4 {[%clk
00:01:49]} 21. f3 {[%clk 00:01:10]} {[%emt 00:00:04]} Bb7 {[%clk 00:01:47]}
{[%emt 00:00:05]} 22. Nb5 {[%clk 00:01:05]} {[%emt 00:00:07]} Ba6 {[%clk
00:01:30]} {[%emt 00:00:19]} 23. Nxd6 {[%clk 00:00:54]} {[%emt 00:00:13]} Rxd6
{[%clk 00:01:26]} {[%emt 00:00:06]} 24. Bxe5 {[%clk 00:00:54]} {[%emt
00:00:02]} Rxd1+ {[%clk 00:01:25]} {[%emt 00:00:03]} 25. Qxd1 {[%clk 00:00:53]}
{[%emt 00:00:03]} f6 {[%clk 00:01:17]} {[%emt 00:00:10]} 26. Bc3 {[%clk
00:00:47]} {[%emt 00:00:08]} Rxc4 {[%clk 00:01:12]} {[%emt 00:00:07]} 27. Qd2
{[%clk 00:00:44]} {[%emt 00:00:05]} Qc7 {[%clk 00:00:59]} {[%emt 00:00:14]} 28.
Rd1 {[%clk 00:00:44]} {[%emt 00:00:03]} Bb5 {[%clk 00:00:50]} {[%emt 00:00:11]}
29. Qd6 {[%clk 00:00:44]} {[%emt 00:00:03]} Qxd6 {[%clk 00:00:49]} {[%emt
00:00:03]} 30. Rxd6 {[%clk 00:00:44]} {[%emt 00:00:01]} Kf7 {[%clk 00:00:49]}
{[%emt 00:00:02]} 31. Kf2 {[%clk 00:00:45]} {[%emt 00:00:01]} Ke7 {[%clk
00:00:46]} {[%emt 00:00:05]} 32. Rd4 {[%clk 00:00:46]} Rc8 {[%clk 00:00:43]}
{[%emt 00:00:05]} 33. e4 {[%clk 00:00:47]} {[%emt 00:00:02]} a5 {[%clk
00:00:43]} {[%emt 00:00:02]} 34. Ke3 {[%clk 00:00:48]} {[%emt 00:00:01]} Bc4
{[%clk 00:00:35]} {[%emt 00:00:09]} 35. Rd2 {[%clk 00:00:48]} {[%emt 00:00:01]}
e5 {[%clk 00:00:34]} {[%emt 00:00:03]} 36. Rd1 {[%clk 00:00:49]} {[%emt
00:00:01]} Bb3 {[%clk 00:00:35]} {[%emt 00:00:02]} 37. Rd2 {[%clk 00:00:50]}
Ke6 {[%clk 00:00:35]} {[%emt 00:00:02]} 38. Rd3 {[%clk 00:00:51]} {[%emt
00:00:01]} h5 {[%clk 00:00:34]} {[%emt 00:00:03]} 39. h3 {[%clk 00:00:51]}
{[%emt 00:00:02]} Bc4 {[%clk 00:00:32]} {[%emt 00:00:04]} 40. Rd2 {[%clk
00:00:52]} Rg8 {[%clk 00:00:32]} {[%emt 00:00:03]} 41. Rd1 {[%clk 00:00:51]}
{[%emt 00:00:03]} g4 {[%clk 00:00:31]} {[%emt 00:00:02]} 42. fxg4 {[%clk
00:00:52]} {[%emt 00:00:01]} hxg4 {[%clk 00:00:33]} 43. h4 {[%clk 00:00:53]} g3
{[%clk 00:00:32]} {[%emt 00:00:03]} 44. Rh1 {[%clk 00:00:54]} {[%emt 00:00:01]}
Rd8 {[%clk 00:00:26]} {[%emt 00:00:08]} 45. Kf3 {[%clk 00:00:40]} {[%emt
00:00:15]} Rd3+ {[%clk 00:00:25]} {[%emt 00:00:03]} 46. Kg4 {[%clk 00:00:41]}
{[%emt 00:00:01]} Re3 {[%clk 00:00:26]} 47. h5 {[%clk 00:00:41]} {[%emt
00:00:03]} Be2+ {[%clk 00:00:21]} {[%emt 00:00:07]} 48. Kh4 {[%clk 00:00:37]}
{[%emt 00:00:05]} Rxe4+ {[%clk 00:00:17]} {[%emt 00:00:06]} 49. Kxg3 {[%clk
00:00:39]} Rg4+ {[%clk 00:00:17]} {[%emt 00:00:01]} 50. Kf2 {[%clk 00:00:39]}
{[%emt 00:00:02]} Bd3 {[%clk 00:00:18]} {[%emt 00:00:02]} 51. h6 {[%clk
00:00:39]} {[%emt 00:00:02]} Bh7 {[%clk 00:00:18]} {[%emt 00:00:01]} 52. Bd2
{[%clk 00:00:39]} {[%emt 00:00:02]} Kf7 {[%clk 00:00:18]} {[%emt 00:00:02]} 53.
Rc1 {[%clk 00:00:39]} {[%emt 00:00:02]} Be4 {[%clk 00:00:14]} {[%emt 00:00:06]}
54. g3 {[%clk 00:00:41]} {[%emt 00:00:01]} Kg8 {[%clk 00:00:11]} {[%emt
00:00:04]} 55. Rc7 {[%clk 00:00:41]} {[%emt 00:00:01]} Rg6 {[%clk 00:00:08]}
{[%emt 00:00:05]} 1/2-1/2

[Event "MČR v bleskovém šachu družstev 2019"]
[Site "Teplice, Czech Republic"]
[Date "2019.09.14"]
[Round "10.3"]
[White "Stocek, Jiri"]
[Black "Chmel, Kristian"]
[Result "1-0"]
[TimeControl "3 mim. + 2 s"]
[WhiteTitle "GM"]
[WhiteFideId "304760"]
[BlackFideId "344281"]
[WhiteElo "2505"]
[BlackElo "2097"]

1. e4 {[%clk 00:03:00]} {[%emt 00:00:03]} e5 {[%clk 00:03:03]} {[%emt
00:00:02]} 2. Bc4 {[%clk 00:03:00]} {[%emt 00:00:02]} Nf6 {[%clk 00:02:59]}
{[%emt 00:00:07]} 3. d3 {[%clk 00:03:01]} {[%emt 00:00:01]} c6 {[%clk
00:02:59]} {[%emt 00:00:02]} 4. Nf3 {[%clk 00:02:59]} {[%emt 00:00:04]} d5
{[%clk 00:02:57]} {[%emt 00:00:05]} 5. Bb3 {[%clk 00:02:59]} {[%emt 00:00:02]}
Bd6 {[%clk 00:02:55]} {[%emt 00:00:03]} 6. exd5 {[%clk 00:02:55]} {[%emt
00:00:06]} cxd5 {[%clk 00:02:56]} {[%emt 00:00:02]} 7. Bg5 {[%clk 00:02:51]}
{[%emt 00:00:05]} h6 {[%clk 00:02:49]} {[%emt 00:00:09]} 8. Bxf6 {[%clk
00:02:50]} {[%emt 00:00:03]} Qxf6 {[%clk 00:02:50]} {[%emt 00:00:02]} 9. Nc3
{[%clk 00:02:34]} {[%emt 00:00:17]} d4 {[%clk 00:02:23]} {[%emt 00:00:30]} 10.
Ne4 {[%clk 00:02:22]} {[%emt 00:00:14]} Qe7 {[%clk 00:02:19]} {[%emt 00:00:05]}
11. Nxd6+ {[%clk 00:02:18]} {[%emt 00:00:06]} Qxd6 {[%clk 00:02:20]} {[%emt
00:00:01]} 12. O-O {[%clk 00:02:10]} {[%emt 00:00:10]} O-O {[%clk 00:02:13]}
{[%emt 00:00:09]} 13. Re1 {[%clk 00:02:10]} {[%emt 00:00:01]} Nc6 {[%clk
00:01:59]} {[%emt 00:00:16]} 14. Ba4 {[%clk 00:02:07]} {[%emt 00:00:05]} Bg4
{[%clk 00:01:35]} {[%emt 00:00:26]} 15. h3 {[%clk 00:01:51]} {[%emt 00:00:18]}
Bh5 {[%clk 00:00:58]} {[%emt 00:00:39]} 16. g4 {[%clk 00:01:39]} {[%emt
00:00:14]} Bg6 {[%clk 00:00:59]} {[%emt 00:00:01]} 17. Bxc6 {[%clk 00:01:39]}
{[%emt 00:00:02]} bxc6 {[%clk 00:00:59]} {[%emt 00:00:02]} 18. Nxe5 {[%clk
00:01:39]} {[%emt 00:00:02]} Bh7 {[%clk 00:00:57]} {[%emt 00:00:04]} 19. Qf3
{[%clk 00:01:35]} {[%emt 00:00:06]} Rac8 {[%clk 00:00:50]} {[%emt 00:00:10]} 20.
Nc4 {[%clk 00:01:33]} {[%emt 00:00:04]} Qd7 {[%clk 00:00:37]} {[%emt 00:00:15]}
21. Qf4 {[%clk 00:01:17]} {[%emt 00:00:18]} Rcd8 {[%clk 00:00:13]} {[%emt
00:00:26]} 22. Re2 {[%clk 00:01:10]} {[%emt 00:00:09]} f5 {[%clk 00:00:14]}
{[%emt 00:00:01]} 23. g5 {[%clk 00:01:09]} {[%emt 00:00:03]} hxg5 24. Qxg5
{[%clk 00:01:09]} Rf6 {[%clk 00:00:14]} {[%emt 00:00:02]} 25. Ne5 {[%clk
00:00:41]} {[%emt 00:00:30]} Qd6 {[%clk 00:00:13]} {[%emt 00:00:02]} 26. Rae1
{[%clk 00:00:38]} {[%emt 00:00:05]} f4 {[%clk 00:00:13]} {[%emt 00:00:03]} 27.
Ng4 {[%clk 00:00:37]} {[%emt 00:00:03]} Rdf8 {[%clk 00:00:04]} {[%emt
00:00:12]} 28. Nxf6+ {[%clk 00:00:33]} {[%emt 00:00:05]} Qxf6 {[%clk 00:00:03]}
{[%emt 00:00:03]} 29. Qxf6 {[%clk 00:00:33]} {[%emt 00:00:02]} Rxf6 {[%clk
00:00:04]} {[%emt 00:00:01]} 30. Re8+ {[%clk 00:00:33]} {[%emt 00:00:02]} Kf7
{[%clk 00:00:05]} {[%emt 00:00:02]} 31. R1e7+ {[%clk 00:00:33]} {[%emt
00:00:02]} Kg6 {[%clk 00:00:06]} {[%emt 00:00:01]} 32. Re6 {[%clk 00:00:33]}
{[%emt 00:00:02]} Kg5 {[%clk 00:00:05]} {[%emt 00:00:03]} 33. Rxf6 {[%clk
00:00:33]} {[%emt 00:00:02]} Kxf6 {[%clk 00:00:05]} {[%emt 00:00:02]} 34. Rc8
{[%clk 00:00:31]} {[%emt 00:00:03]} 1-0

[Event "MČR v bleskovém šachu družstev 2019"]
[Site "Teplice, Czech Republic"]
[Date "2019.09.14"]
[Round "10.4"]
[White "Routner, Jakub"]
[Black "Vymazal, Bronislav"]
[Result "1/2-1/2"]
[TimeControl "3 mim. + 2 s"]
[WhiteFideId "322245"]
[BlackFideId "318396"]
[WhiteElo "2138"]
[BlackElo "2309"]

1. e4 {[%clk 00:03:03]} b6 {[%clk 00:03:03]} {[%emt 00:00:01]} 2. Nf3 {[%clk
00:02:59]} {[%emt 00:00:06]} Bb7 {[%clk 00:03:04]} 3. Nc3 {[%clk 00:02:56]}
{[%emt 00:00:05]} e6 {[%clk 00:03:05]} {[%emt 00:00:01]} 4. d3 {[%clk
00:02:51]} {[%emt 00:00:07]} c5 {[%clk 00:03:01]} {[%emt 00:00:06]} 5. g3
{[%clk 00:02:51]} {[%emt 00:00:02]} g6 {[%clk 00:02:54]} {[%emt 00:00:08]} 6.
Bg2 {[%clk 00:02:52]} {[%emt 00:00:01]} Bg7 {[%clk 00:02:55]} 7. Be3 {[%clk
00:02:47]} {[%emt 00:00:08]} Nc6 {[%clk 00:02:45]} {[%emt 00:00:12]} 8. Qd2
{[%clk 00:02:47]} {[%emt 00:00:02]} Nd4 {[%clk 00:02:16]} {[%emt 00:00:30]} 9.
O-O {[%clk 00:02:39]} {[%emt 00:00:10]} Ne7 {[%clk 00:02:16]} {[%emt 00:00:02]}
10. Nd1 {[%clk 00:02:36]} {[%emt 00:00:05]} Nxf3+ {[%clk 00:02:09]} {[%emt
00:00:09]} 11. Bxf3 {[%clk 00:02:36]} {[%emt 00:00:02]} O-O {[%clk 00:01:48]}
{[%emt 00:00:22]} 12. Bh6 {[%clk 00:02:31]} {[%emt 00:00:07]} f5 {[%clk
00:01:26]} {[%emt 00:00:24]} 13. Bg2 {[%clk 00:02:15]} {[%emt 00:00:18]} e5
{[%clk 00:01:26]} {[%emt 00:00:02]} 14. Bxg7 {[%clk 00:02:10]} {[%emt
00:00:07]} Kxg7 {[%clk 00:01:27]} {[%emt 00:00:01]} 15. exf5 {[%clk 00:02:02]}
{[%emt 00:00:10]} Bxg2 {[%clk 00:01:25]} {[%emt 00:00:04]} 16. Kxg2 {[%clk
00:01:47]} {[%emt 00:00:18]} Nxf5 {[%clk 00:01:23]} {[%emt 00:00:03]} 17. Ne3
{[%clk 00:01:40]} {[%emt 00:00:09]} Qg5 {[%clk 00:00:37]} {[%emt 00:00:48]} 18.
Nxf5+ {[%clk 00:01:40]} {[%emt 00:00:02]} Qxf5 {[%clk 00:00:38]} {[%emt
00:00:01]} 19. f4 {[%clk 00:01:40]} {[%emt 00:00:02]} exf4 {[%clk 00:00:38]}
{[%emt 00:00:02]} 20. Rxf4 {[%clk 00:01:35]} {[%emt 00:00:07]} Qd5+ {[%clk
00:00:38]} {[%emt 00:00:01]} 21. Kg1 {[%clk 00:01:30]} {[%emt 00:00:07]} Rxf4
{[%clk 00:00:38]} {[%emt 00:00:03]} 22. Qxf4 {[%clk 00:01:23]} {[%emt
00:00:08]} Rf8 {[%clk 00:00:38]} {[%emt 00:00:02]} 23. Qe4 {[%clk 00:01:10]}
{[%emt 00:00:16]} Qxe4 {[%clk 00:00:28]} {[%emt 00:00:13]} 24. dxe4 {[%clk
00:01:10]} {[%emt 00:00:01]} Re8 {[%clk 00:00:29]} 25. Rd1 {[%clk 00:01:07]}
{[%emt 00:00:05]} Re7 {[%clk 00:00:30]} {[%emt 00:00:01]} 26. Kf2 {[%clk
00:01:07]} {[%emt 00:00:01]} Kf6 {[%clk 00:00:31]} {[%emt 00:00:01]} 27. Kf3
{[%clk 00:01:04]} {[%emt 00:00:06]} Ke5 {[%clk 00:00:30]} {[%emt 00:00:02]} 28.
Rd5+ {[%clk 00:01:04]} {[%emt 00:00:02]} Ke6 {[%clk 00:00:32]} {[%emt
00:00:01]} 29. Rd3 {[%clk 00:01:03]} {[%emt 00:00:03]} Rf7+ {[%clk 00:00:31]}
{[%emt 00:00:03]} 30. Ke2 {[%clk 00:00:50]} {[%emt 00:00:15]} d6 {[%clk
00:00:28]} {[%emt 00:00:04]} 31. Rd5 {[%clk 00:00:46]} {[%emt 00:00:05]} h6
{[%clk 00:00:29]} {[%emt 00:00:03]} 32. h3 {[%clk 00:00:43]} {[%emt 00:00:05]}
b5 {[%clk 00:00:28]} {[%emt 00:00:03]} 33. c3 {[%clk 00:00:37]} {[%emt
00:00:08]} a5 {[%clk 00:00:28]} {[%emt 00:00:01]} 34. Rd3 {[%clk 00:00:38]}
{[%emt 00:00:02]} g5 {[%clk 00:00:21]} {[%emt 00:00:10]} 35. Rf3 {[%clk
00:00:35]} {[%emt 00:00:04]} Rxf3 {[%clk 00:00:08]} {[%emt 00:00:15]} 36. Kxf3
{[%clk 00:00:36]} Ke5 {[%clk 00:00:08]} {[%emt 00:00:02]} 37. g4 {[%clk
00:00:27]} {[%emt 00:00:11]} d5 {[%clk 00:00:04]} {[%emt 00:00:05]} 38. exd5
{[%clk 00:00:27]} {[%emt 00:00:02]} Kxd5 {[%clk 00:00:05]} {[%emt 00:00:01]} 39.
Ke3 {[%clk 00:00:28]} Ke5 {[%clk 00:00:03]} {[%emt 00:00:04]} 40. Kf3 {[%clk
00:00:28]} {[%emt 00:00:03]} b4 {[%clk 00:00:03]} {[%emt 00:00:02]} 41. Ke3
{[%clk 00:00:29]} {[%emt 00:00:01]} Kd5 {[%clk 00:00:04]} {[%emt 00:00:01]} 42.
Kd3 {[%clk 00:00:29]} {[%emt 00:00:01]} c4+ {[%clk 00:00:04]} {[%emt 00:00:02]}
43. Ke3 {[%clk 00:00:29]} {[%emt 00:00:02]} bxc3 {[%clk 00:00:04]} {[%emt
00:00:01]} 44. bxc3 {[%clk 00:00:29]} {[%emt 00:00:02]} Ke5 {[%clk 00:00:04]}
{[%emt 00:00:02]} 45. a4 {[%clk 00:00:27]} {[%emt 00:00:04]} Kd5 {[%clk
00:00:05]} {[%emt 00:00:01]} 46. Kf3 {[%clk 00:00:28]} {[%emt 00:00:01]} Ke5
{[%emt 00:00:01]} 1/2-1/2

[Event "MČR v bleskovém šachu družstev 2019"]
[Site "Teplice, Czech Republic"]
[Date "2019.09.14"]
[Round "10.5"]
[White "Vykouk, Jan"]
[Black "Bernasek, Jan"]
[Result "1-0"]
[TimeControl "3 mim. + 2 s"]
[WhiteTitle "IM"]
[BlackTitle "GM"]
[BlackFideId "311995"]
[WhiteElo "2439"]
[BlackElo "2526"]

1. e4 {[%clk 00:03:02]} c5 {[%clk 00:03:04]} {[%emt 00:00:01]} 2. Nf3 {[%clk
00:03:03]} {[%emt 00:00:01]} e6 {[%clk 00:03:05]} 3. d4 {[%clk 00:03:04]}
{[%emt 00:00:01]} cxd4 {[%clk 00:03:07]} {[%emt 00:00:01]} 4. Nxd4 {[%clk
00:03:05]} a6 {[%clk 00:03:08]} 5. Bd3 {[%clk 00:03:06]} {[%emt 00:00:02]} Bc5
{[%clk 00:03:08]} {[%emt 00:00:01]} 6. Nb3 {[%clk 00:03:07]} {[%emt 00:00:02]}
Be7 {[%clk 00:03:09]} 7. O-O {[%clk 00:03:04]} {[%emt 00:00:04]} d6 {[%clk
00:03:10]} {[%emt 00:00:01]} 8. c4 {[%clk 00:03:00]} {[%emt 00:00:06]} Nf6
{[%clk 00:03:11]} {[%emt 00:00:01]} 9. Nc3 {[%clk 00:03:01]} {[%emt 00:00:01]}
O-O {[%clk 00:03:12]} {[%emt 00:00:01]} 10. Be3 {[%clk 00:03:01]} {[%emt
00:00:02]} Nbd7 {[%clk 00:03:12]} {[%emt 00:00:02]} 11. f4 {[%clk 00:03:01]}
{[%emt 00:00:02]} b6 {[%clk 00:03:11]} {[%emt 00:00:03]} 12. g4 {[%clk
00:03:00]} {[%emt 00:00:04]} Nc5 {[%clk 00:03:00]} {[%emt 00:00:13]} 13. Nxc5
{[%clk 00:02:41]} {[%emt 00:00:21]} bxc5 {[%clk 00:03:00]} {[%emt 00:00:01]} 14.
g5 {[%clk 00:02:42]} {[%emt 00:00:01]} Nd7 {[%clk 00:03:01]} {[%emt 00:00:01]}
15. Qh5 {[%clk 00:02:33]} {[%emt 00:00:10]} g6 {[%clk 00:02:52]} {[%emt
00:00:12]} 16. Qh6 {[%clk 00:02:31]} {[%emt 00:00:05]} Re8 {[%clk 00:02:50]}
{[%emt 00:00:03]} 17. Rae1 {[%clk 00:02:29]} {[%emt 00:00:04]} Bf8 {[%clk
00:02:49]} {[%emt 00:00:04]} 18. Qh3 {[%clk 00:02:26]} {[%emt 00:00:04]} Bg7
{[%clk 00:02:49]} {[%emt 00:00:02]} 19. f5 {[%clk 00:02:16]} {[%emt 00:00:13]}
Ne5 {[%clk 00:02:50]} {[%emt 00:00:01]} 20. Bb1 {[%clk 00:01:50]} {[%emt
00:00:27]} Nxc4 {[%clk 00:02:38]} {[%emt 00:00:14]} 21. f6 {[%clk 00:01:50]}
{[%emt 00:00:02]} Nxe3 {[%clk 00:02:34]} {[%emt 00:00:06]} 22. Rxe3 {[%clk
00:01:49]} {[%emt 00:00:03]} Bf8 {[%clk 00:02:36]} 23. e5 {[%clk 00:01:41]}
{[%emt 00:00:10]} d5 {[%clk 00:02:22]} {[%emt 00:00:16]} 24. Qh4 {[%clk
00:01:40]} {[%emt 00:00:03]} Qc7 {[%clk 00:02:12]} {[%emt 00:00:12]} 25. Rf4
{[%clk 00:01:21]} {[%emt 00:00:21]} h6 {[%clk 00:00:46]} {[%emt 00:01:28]} 26.
Bxg6 {[%clk 00:01:12]} {[%emt 00:00:11]} d4 {[%clk 00:00:47]} 27. Bxf7+ {[%clk
00:01:03]} {[%emt 00:00:11]} Qxf7 {[%clk 00:00:34]} {[%emt 00:00:14]} 28. g6
{[%clk 00:01:04]} {[%emt 00:00:01]} Qxg6+ {[%clk 00:00:35]} {[%emt 00:00:01]}
29. Rg3 {[%clk 00:01:04]} {[%emt 00:00:02]} Qxg3+ {[%clk 00:00:29]} {[%emt
00:00:08]} 30. Qxg3+ {[%clk 00:00:58]} {[%emt 00:00:08]} Kf7 {[%clk 00:00:24]}
{[%emt 00:00:06]} 31. Ne4 {[%clk 00:00:57]} {[%emt 00:00:03]} Bb7 {[%clk
00:00:21]} {[%emt 00:00:06]} 32. Nd6+ {[%clk 00:00:57]} {[%emt 00:00:02]} 1-0

[Event "MČR v bleskovém šachu družstev 2019"]
[Site "Teplice, Czech Republic"]
[Date "2019.09.14"]
[Round "10.6"]
[White "Cernousek, Lukas"]
[Black "Studnicka, Tomas"]
[Result "0-1"]
[TimeControl "3 mim. + 2 s"]
[WhiteTitle "IM"]
[BlackTitle "IM"]
[WhiteFideId "311707"]
[WhiteElo "2473"]
[BlackElo "2215"]

1. Nf3 {[%clk 00:03:03]} c5 {[%clk 00:03:02]} {[%emt 00:00:02]} 2. e3 {[%clk
00:03:03]} {[%emt 00:00:02]} Nc6 {[%clk 00:02:52]} {[%emt 00:00:12]} 3. d4
{[%clk 00:03:03]} {[%emt 00:00:02]} cxd4 {[%clk 00:02:53]} {[%emt 00:00:01]} 4.
exd4 {[%clk 00:03:04]} d5 {[%clk 00:02:54]} 5. c4 {[%clk 00:03:04]} {[%emt
00:00:03]} Nf6 {[%clk 00:02:54]} {[%emt 00:00:02]} 6. Nc3 {[%clk 00:03:05]} g6
{[%clk 00:02:55]} {[%emt 00:00:02]} 7. cxd5 {[%clk 00:03:06]} {[%emt 00:00:02]}
Nxd5 {[%clk 00:02:55]} 8. Qb3 {[%clk 00:03:07]} Nxc3 {[%clk 00:02:53]} {[%emt
00:00:04]} 9. Bc4 {[%clk 00:03:09]} Nd5 {[%clk 00:02:44]} {[%emt 00:00:12]} 10.
Bxd5 {[%clk 00:03:10]} e6 {[%clk 00:02:46]} 11. Bxc6+ {[%clk 00:03:09]} {[%emt
00:00:03]} bxc6 {[%clk 00:02:47]} 12. O-O {[%clk 00:03:00]} {[%emt 00:00:11]}
Bg7 {[%clk 00:02:46]} {[%emt 00:00:02]} 13. Qa3 {[%clk 00:02:36]} {[%emt
00:00:26]} Qe7 {[%clk 00:02:47]} {[%emt 00:00:02]} 14. Qc3 {[%clk 00:02:37]}
{[%emt 00:00:01]} Bb7 {[%clk 00:02:31]} {[%emt 00:00:18]} 15. Bg5 {[%clk
00:02:34]} {[%emt 00:00:05]} Qd6 {[%clk 00:02:30]} {[%emt 00:00:02]} 16. Rfd1
{[%clk 00:02:08]} {[%emt 00:00:28]} O-O {[%clk 00:02:24]} {[%emt 00:00:08]} 17.
Rac1 {[%clk 00:02:07]} {[%emt 00:00:03]} Qd5 {[%clk 00:02:07]} {[%emt
00:00:19]} 18. a3 {[%clk 00:01:46]} {[%emt 00:00:23]} Rfc8 {[%clk 00:01:59]}
{[%emt 00:00:09]} 19. Be7 {[%clk 00:01:39]} {[%emt 00:00:09]} a5 {[%clk
00:01:44]} {[%emt 00:00:17]} 20. Qe3 {[%clk 00:01:30]} {[%emt 00:00:12]} a4
{[%clk 00:01:39]} {[%emt 00:00:06]} 21. Bb4 {[%clk 00:01:17]} {[%emt 00:00:15]}
Re8 {[%clk 00:01:32]} {[%emt 00:00:09]} 22. Rc5 {[%clk 00:01:13]} {[%emt
00:00:06]} Qa2 {[%clk 00:01:14]} {[%emt 00:00:19]} 23. Qc3 {[%clk 00:00:48]}
{[%emt 00:00:27]} Rad8 {[%clk 00:01:02]} {[%emt 00:00:14]} 24. Ne5 {[%clk
00:00:27]} {[%emt 00:00:23]} Rd5 {[%clk 00:01:02]} {[%emt 00:00:02]} 25. h4
{[%clk 00:00:22]} {[%emt 00:00:07]} Bxe5 {[%clk 00:00:59]} {[%emt 00:00:05]} 26.
Rxd5 {[%clk 00:00:20]} {[%emt 00:00:04]} Qxd5 {[%clk 00:00:59]} {[%emt
00:00:02]} 0-1